Cogmind - Beta 10.2 @@@ ROGUE MODE // 2020.12.10 @ 00:04:53 Player: kerapace Result: Self-destructed Performance ------------- Evolutions (5) 2500 Regions Visited (16) 3200 Robots Destroyed (112) 560 Value Destroyed (3354) 3354 Prototype IDs (24) 480 Alien Tech Used (0) 0 Bonus (606) 606 TOTAL SCORE: 10700 Bonus ------- High Alert Combat Kills 207 Follower Combat Kills 954 Met Imprinter 300 Destroyed Z-Imprinter 1000 Friendly Fire -1855 Cogmind --------- Core Integrity 1000/1000 Matter 231/300 Energy 70/100 System Corruption 0% Temperature Cool (1) Movement Flying (200) Ox2 Location -5/Factory Parts ------- > --- POWER (1) -------- (None) > --- PROPULSION (4) --- Field Propulsion Drive > --- UTILITY (10) ----- Fusion Compressor Advanced Heat Sink Zionite Metafield Generator Improved Melee Analysis Suite Improved Hacking Suite System Shield > --- WEAPON (2) ------- Improved Arc Projector Improved Arc Projector > --- INVENTORY (4) ---- Xenon Bombardment Thruster Layered Medium Armor Plating Peak State ------------ > --- POWER ------------ Mini Fusion Reactor > --- PROPULSION ------- Zionite Glidesys II Zionite Glidesys II Zionite Glidesys II > --- UTILITY ---------- Experimental Heat Sink Medium Storage Unit Zionite Metafield Generator Zionite Weapon Casing Powered Armor Hacking Suite Hacking Suite > --- WEAPON ----------- Advanced EMP Blaster > --- INVENTORY -------- Improved VTOL Module Improved Energy Well Zionite Light Carapace System Backup Module Mobile Refinery Mk. CCLXVII Bomb Factory No. 2 [Rating: 72] Favorites ----------- Power Mini Fusion Reactor Engine Cooled Ion Engine Reactor Mini Fusion Reactor Propulsion Improved VTOL Module Treads Light Treads Leg Improved Aluminum Leg Wheel Compact Wheel Hover Unit Zionite Glidesys II Flight Unit Improved VTOL Module Utility Large Storage Unit Device Advanced Weight Redist. System Storage Large Storage Unit Processor Improved Melee Analysis Suite Hackware Hacking Suite Protection Powered Armor Weapon Advanced Beam Cannon Energy Gun Zionite Phaser-S Energy Cannon Advanced Beam Cannon Ballistic Gun Assault Rifle Ballistic Cannon Bore Cannon Launcher Advanced EMP Blaster Impact Weapon Impact Mace Slashing Weapon Chainsword Build | -11 -10 -10 -9 -9 -8 -7 -7 -7 -7 -7 -7 -7 -6 -6 -6 -5 ------- Run | Scr Mat Min Mat Sto Mat Fac Was Fac Low Low Zio Dee Pro Fac Ext Fac Slots Evolved 10 | . . . 2 . 2 2 . . . . . . . 2 . 2 Power . | . . . . . . . . . . . . . . . . . Propulsion 2 | . . . 1 . . . . . . . . . . 1 . . Utility 8 | . . . 1 . 2 2 . . . . . . . 1 . 2 Weapon . | . . . . . . . . . . . . . . . . . Parts Attached 199 | 6 3 2 14 32 29 14 . 11 2 1 5 27 5 25 18 5 Power 15 | 1 . . 2 3 3 1 . . . . . 1 . 2 2 . Engine 10 | 1 . . 2 2 3 . . . . . . . . 1 1 . Core . | . . . . . . . . . . . . . . . . . Reactor 5 | . . . . 1 . 1 . . . . . 1 . 1 1 . Propulsion 60 | 2 1 1 4 12 11 3 . 3 . . . 4 3 7 8 1 Treads 13 | 1 . . 2 . 7 . . . . . . . . 1 2 . Leg 15 | . . . . 10 1 . . . . . . . . . 4 . Wheel 7 | 1 1 1 2 . . . . . . . . . . . 2 . Hover 13 | . . . . 2 2 . . . . . . 4 1 4 . . Flight 12 | . . . . . 1 3 . 3 . . . . 2 2 . 1 Utility 80 | 1 2 . 2 8 11 7 . 7 2 1 4 16 2 13 2 2 Device 29 | . . . . 2 3 2 . 4 1 1 3 5 1 4 1 2 Storage 14 | 1 2 . . 2 1 2 . 1 . . 1 3 . 1 . . Processor 1 | . . . . . . . . . . . . . . 1 . . Hackware 7 | . . . . . . 3 . 1 . . . . . 3 . . Protection 29 | . . . 2 4 7 . . 1 1 . . 8 1 4 1 . Artifact . | . . . . . . . . . . . . . . . . . Weapon 44 | 2 . 1 6 9 4 3 . 1 . . 1 6 . 3 6 2 Energy Gun 8 | 2 . . . . . . . . . . . 1 . . 3 2 Energy Cannon 12 | . . . . 6 3 . . . . . . . . 3 . . Ballistic Gun 9 | . . 1 3 3 . . . . . . . 1 . . 1 . Ballistic Cannon 2 | . . . . . . . . . . . . . . . 2 . Launcher 7 | . . . 2 . 1 1 . . . . . 3 . . . . Special Weapon . | . . . . . . . . . . . . . . . . . Impact Weapon 3 | . . . 1 . . . . . . . 1 1 . . . . Slashing Weapon 3 | . . . . . . 2 . 1 . . . . . . . . Piercing Weapon . | . . . . . . . . . . . . . . . . . Special Melee Weapon . | . . . . . . . . . . . . . . . . . Unidentified Prototypes 20 | . . . 2 4 4 . . . . . 1 9 . . . . Parts Lost 60 | . . 5 9 4 4 . . . . . . 2 6 8 22 . Power 6 | . . 1 1 . . . . . . . . . . 2 2 . Propulsion 25 | . . 2 4 2 . . . . . . . 1 4 3 9 . Utility 13 | . . . 2 . 2 . . . . . . . 1 2 6 . Weapon 16 | . . 2 2 2 2 . . . . . . 1 1 1 5 . Highest Loss Streak 9 | . . 5 6 2 2 . . . . . . 1 5 7 9 . Average Slot Usage (%) 87 | . 100 92 85 93 96 91 92 85 84 84 84 90 65 62 84 41 Engine 5 | . 14 14 9 9 8 . . . . . . . . 3 3 . Reactor 2 | . . . . . . 6 7 7 7 7 7 7 5 . 1 . Treads 6 | . 14 10 9 . 23 . . . . . . . . . 2 . Leg 5 | . . . . 29 3 . . . . . . . . . 2 . Wheel 2 | . 14 10 18 . . . . . . . . . . . 7 . Hover 3 | . . . . 1 . . . . . . . 19 11 12 4 . Flight 5 | . . . . . . 22 23 16 15 15 15 1 2 3 . 4 Device 6 | . . . . . 5 14 15 14 23 23 18 3 4 1 5 14 Storage 17 | . 28 28 22 22 20 15 15 15 15 15 19 18 15 2 5 . Hackware 9 | . . . . . . 21 23 22 15 15 15 15 15 20 24 11 Protection 7 | . . . 7 8 16 . . . . . . 13 4 5 4 . Energy Gun 1 | . 28 24 . . . . . . . . . 2 3 2 2 4 Energy Cannon 6 | . . . . 18 13 . . . . . . . . 3 1 . Ballistic Gun 2 | . . 3 15 1 2 . . . . . . . . . 1 . Slashing Weapon 1 | . . . . . . 6 7 7 7 7 3 . . . . . Naked Turns . | . . . . . . . . . . . . . . . . . Heaviest Build 80 | 12 40 40 49 55 80 80 27 44 44 44 42 65 64 30 42 19 Greatest Support 102 | 20 20 10 32 39 62 62 27 44 44 44 44 102 78 33 50 9 Greatest Overweight (x) 14 | 1 3 3 14 5 1 1 . . . . 1 1 2 1 6 2 Average Overweight (x) . | . 2 3 1 1 . . . . . . . . . . . . Largest Inventory Capacity 22 | 6 16 16 16 22 22 22 12 14 14 14 18 18 18 4 4 4 Average Capacity 13 | 5 15 16 16 16 17 12 12 13 14 14 16 15 13 4 4 4 Most Carried 22 | 3 10 10 16 16 22 22 12 14 12 14 18 18 17 4 4 4 Average Carried 12 | 1 6 9 13 14 17 11 11 12 12 12 15 14 12 3 4 2 Final Capacity 22 | 6 16 16 16 16 22 12 12 14 14 14 18 18 4 4 4 4 Final Carried 22 | 3 10 8 16 15 22 12 12 12 12 14 18 17 4 4 4 2 Class Distribution -------------------- 34% | Hacker-Mutant 31% | Mutant 14% | Scavenger-Mutant 7% | Commander-Mutant 6% | Hacker-Sprinter 5% | Hauler-Mutant Dominant Class ---------------- Mutant | -10/Materials Mutant | -10/Mines Mutant | -9/Materials Commander-Mutant | -9/Storage Mutant | -8/Materials Hacker-Sprinter | -7/Factory Hacker-Sprinter | -7/Waste Hacker-Mutant | -7/Factory Hacker-Mutant | -7/Lower Caves Hacker-Mutant | -7/Lower Caves Hacker-Mutant | -7/Zion Scavenger-Mutant | -7/Deep Caves Hacker-Mutant | -6/Proximity Caves Hacker-Mutant | -6/Factory Hacker-Mutant | -6/Extension Hacker-Mutant | -5/Factory Resources | -11 -10 -10 -9 -9 -8 -7 -7 -7 -7 -7 -7 -7 -6 -6 -6 -5 ----------- Run | Scr Mat Min Mat Sto Mat Fac Was Fac Low Low Zio Dee Pro Fac Ext Fac Matter Collected 2938 | 209 71 . 578 328 424 130 . 63 51 36 50 329 17 251 401 . Remotely . | . . . . . . . . . . . . . . . . . Salvage Created 5459 | . 289 . 711 1319 1600 163 . 63 . . . 221 . 320 773 . Parts 284 | . 15 . 47 67 77 7 . 7 . . . 14 . 12 38 . Haulers Intercepted 18 | . 2 . 3 6 5 2 . . . . . . . . . . Recyclers Shooed 1 | . . . . . 1 . . . . . . . . . . . Parts Field Recycled . | . . . . . . . . . . . . . . . . . Retrieved Matter . | . . . . . . . . . . . . . . . . . Parts Self-Destructed 4 | . . . . . . . . . . . 1 . 3 . . . Prevented . | . . . . . . . . . . . . . . . . . Kills | -11 -10 -10 -9 -9 -8 -7 -7 -7 -7 -7 -7 -7 -6 -6 -6 -5 ------- Run | Scr Mat Min Mat Sto Mat Fac Was Fac Low Low Zio Dee Pro Fac Ext Fac Combat Hostiles Destroyed 69 | . 4 1 12 13 22 . . . . . . 4 . 3 10 . Melee 2 | . . . 1 1 . . . . . . . . . . . . Guns 16 | . 4 1 6 1 1 . . . . . . . . . 3 . Cannons 41 | . . . . 11 20 . . . . . . . . 3 7 . AOE 10 | . . . 5 . 1 . . . . . . 4 . . . . Classes Destroyed 17 | . 4 1 5 2 2 . . . . . . 1 . 1 1 . Worker 4 | . . . 1 1 1 . . . . . . . . . 1 . Builder 2 | . . . 1 . . . . . . . . . . . 1 . Tunneler 1 | . . . . . 1 . . . . . . . . . . . Hauler 18 | . 2 . 3 6 5 2 . . . . . . . . . . Recycler 6 | . . . . 2 . 1 . . . . . . . 1 2 . Mechanic 1 | . . . . 1 . . . . . . . . . . . . Operator 2 | . 1 . . . 1 . . . . . . . . . . . Watcher 5 | . . . 2 . 1 . . 2 . . . . . . . . Swarmer 4 | . 1 . 3 . . . . . . . . . . . . . Grunt 37 | . 3 . 5 13 10 . . . . . . . . 1 5 . Brawler 2 | . . . 1 . 1 . . . . . . . . . . . Sentry 18 | . . . 3 3 9 . . . . . . . . 1 2 . Demolisher 1 | . . 1 . . . . . . . . . . . . . . Hunter 3 | . . . . . 2 . . . . . . . . . 1 . Programmer 1 | . . . . . . . . . . . . . . 1 . . Behemoth 1 | . . . . . . . . . . . . . . . 1 . Z-Light 4 | . . . . . . . . . . . . 4 . . . . Guerrilla 1 | . . . . . . . . . . . . . . . 1 . Best Kill Streak 5 | . 3 1 5 5 3 1 . 1 . . . 3 . 1 3 . Combat Bots Only 4 | . 2 1 4 4 3 . . . . . . 3 . 1 3 . Max Kills in Single Turn 2 | . 1 1 2 1 2 1 . 1 . . . 2 . 1 2 . Gunslinging . | . . . . . . . . . . . . . . . . . Exploded 2 | . . . 1 . 1 . . . . . . 2 . . . . Melee 1 | . . . 1 1 . . . . . . . . . . . . Uniques/NPCs Destroyed 2 | . . . . 1 . . . . . . . 1 . . . . 01-MTF (-9/Storage) Z-Imprinter (-7/Deep Caves) Combat | -11 -10 -10 -9 -9 -8 -7 -7 -7 -7 -7 -7 -7 -6 -6 -6 -5 -------- Run | Scr Mat Min Mat Sto Mat Fac Was Fac Low Low Zio Dee Pro Fac Ext Fac Damage Taken 8464 | . 281 294 1093 672 1247 . . 16 . . . 475 1076 730 2562 18 Core 1726 | . 23 66 144 133 172 . . . . . . 62 291 124 711 . Absorbed by Shields 40 | . . . . . . . . . . . . . . 35 5 . Core Remaining (%) 52 | 100 . 64 . 30 68 . . . . . . . 49 . 1 . Volleys Fired 324 | . 19 2 48 61 93 . . . . . . 17 4 36 40 4 Largest 2 | . 2 2 2 2 2 . . . . . . 2 1 1 2 2 Hottest 138 | . 80 80 56 136 138 . . . . . . 72 60 90 132 130 Shots Fired 555 | . 37 4 96 122 164 . . . . . . 22 4 36 62 8 Gun 217 | . 37 4 89 3 39 . . . . . . 9 4 . 24 8 Cannon 315 | . . . . 119 122 . . . . . . . . 36 38 . Launcher 23 | . . . 7 . 3 . . . . . . 13 . . . . Special . | . . . . . . . . . . . . . . . . . Kinetic 174 | . . 1 89 3 39 . . . . . . 1 . . 41 . Thermal 252 | . 18 2 . 119 56 . . . . . . . . 36 21 . Explosive . | . . . . . . . . . . . . . . . . . Electromagnetic 117 | . 19 1 7 . 69 . . . . . . 13 . . . 8 Phasic 12 | . . . . . . . . . . . . 8 4 . . . Robot Hit Streak 21 | . 9 1 11 12 21 . . . . . . 4 . 8 6 3 Robot Miss Streak 8 | . 6 1 5 4 3 . . . . . . 2 1 1 8 1 Penetration Max 2 | . . . . . . . . . . . . . . . 2 . Secondary Targets . | . . . . . . . . . . . . . . . . . Shots Hit Robots 374 | . 20 2 67 88 114 10 . 2 . . . 8 . 21 37 5 Core Hits 163 | . 12 2 23 35 39 3 . 2 . . . 11 1 7 28 . Critical Hits 33 | . . . 1 6 7 . . . . . . . . . 19 . Critical Kills 12 | . . . . . 4 . . . . . . . . . 8 . Critical Parts Destroyed 15 | . . . 1 3 2 . . . . . . . . . 9 . Melee Attacks 66 | . . . 12 13 . 13 . 17 . . 10 1 . . . . Impact 36 | . . . 12 13 . . . . . . 10 1 . . . . Slashing 30 | . . . . . . 13 . 17 . . . . . . . . Piercing . | . . . . . . . . . . . . . . . . . Sneak Attacks 6 | . . . . 3 . 3 . . . . . . . . . . Combat Hostiles . | . . . . . . . . . . . . . . . . . Follow-up Attacks . | . . . . . . . . . . . . . . . . . Damage Inflicted 9639 | . 304 33 1100 1815 2843 554 . 86 . . . 717 6 696 1405 80 Guns 1879 | . 273 33 705 28 252 . . . . . . 66 . . 442 80 Cannons 5281 | . . . . 1436 2302 . . . . . . . . 696 847 . Explosions 1335 | . 31 . 250 . 289 . . . . . . 651 . . 114 . Melee 1111 | . . . 145 326 . 554 . 86 . . . . . . . . Ramming 33 | . . . . 25 . . . . . . . . 6 . 2 . Kinetic 1920 | . . . 705 28 252 . . . . . . . . . 935 . Thermal 4199 | . 107 21 . 1436 1118 . . . . . . 353 . 696 468 . Explosive 56 | . . . 56 . . . . . . . . . . . . . Electromagnetic 2254 | . 197 12 194 . 1473 . . . . . . 298 . . . 80 Impact 471 | . . . 145 326 . . . . . . . . . . . . Slashing 640 | . . . . . . 554 . 86 . . . . . . . . Piercing . | . . . . . . . . . . . . . . . . . Phasic 66 | . . . . . . . . . . . . 66 . . . . Highest Corruption 6 | . . . . 3 . . . . . . . . 4 6 6 . Average Corruption 3 | . . . . 1 . . . . . . . . 3 5 6 . Corruption Purged . | . . . . . . . . . . . . . . . . . Effects 63 | . . . . 15 . . . . . . . . 1 24 23 . Message Errors 14 | . . . . 5 . . . . . . . . . 4 5 . Matter Fused 7 | . . . . 1 . . . . . . . . . 3 3 . Heat Flow Errors 9 | . . . . 3 . . . . . . . . . 3 3 . Energy Discharges 9 | . . . . 1 . . . . . . . . 1 4 3 . Parts Rejected 1 | . . . . . . . . . . . . . . 1 . . Data Loss (minor) 5 | . . . . 1 . . . . . . . . . 3 1 . Data Loss (major) 1 | . . . . . . . . . . . . . . 1 . . Misfires 2 | . . . . . . . . . . . . . . . 2 . Targeting Errors 15 | . . . . 4 . . . . . . . . . 5 6 . Overload Shots . | . . . . . . . . . . . . . . . . . Overflow Damage 267 | . . . . 126 105 12 . . . . . . . 2 22 . Projectiles 111 | . . . . 27 82 . . . . . . . . 2 . . Explosions 45 | . . . . . 23 . . . . . . . . . 22 . Melee 111 | . . . . 99 . 12 . . . . . . . . . . Knockbacks 4 | . . . . 2 . . . . . . . . . . 2 . Impact 2 | . . . . 2 . . . . . . . . . . . . Kinetic 2 | . . . . . . . . . . . . . . . 2 . Secondary . | . . . . . . . . . . . . . . . . . Self-Inflicted Damage 231 | . 46 . 51 . 63 . . . . . . . 3 . 68 . Shots 8 | . 1 . 4 . 2 . . . . . . . . . 1 . Rammed 2 | . . . . . . . . . . . . . 1 . 1 . Targets Rammed 3 | . . . . 1 . . . . . . . . 1 . 1 . Kicked 1 | . . . . 1 . . . . . . . . . . . . Crushed . | . . . . . . . . . . . . . . . . . Highest Temperature 379 | . 270 20 5 379 270 . . . . . . 371 96 365 235 5 Average Temperature 101 | . 96 13 3 149 63 . . . . . . 80 43 92 93 3 Received Heat Transfer 2184 | . 84 . 366 330 333 . . 9 . . . 135 96 276 546 9 Effects 5 | . . . . 4 . . . . . . . 1 . . . . Shutdowns 1 | . . . . . . . . . . . . 1 . . . . Interference 2 | . . . . 2 . . . . . . . . . . . . Damage (minor) 2 | . . . . 2 . . . . . . . . . . . . Siege Activations . | . . . . . . . . . . . . . . . . . Robots Corrupted 1 | . . . . . 1 . . . . . . . . . . . Combat Hostiles . | . . . . . . . . . . . . . . . . . Parts Fried 20 | . . . . 4 10 . . . . . . 6 . . . . Impact Corruptions 3 | . . . . 3 . . . . . . . . . . . . Robots Melted . | . . . . . . . . . . . . . . . . . Combat Hostiles . | . . . . . . . . . . . . . . . . . Parts Melted 6 | . . . . . 2 . . . . . . 1 . 2 1 . Heat Transferred 6928 | . 225 50 . 3256 1765 . . . . . . 250 . 814 568 . Parts Sabotaged . | . . . . . . . . . . . . . . . . . Parts Stolen . | . . . . . . . . . . . . . . . . . Parts Stripped . | . . . . . . . . . . . . . . . . . Power Chain Reactions 7 | . 1 . 1 . 3 . . . . . . 2 . . . . Missiles Intercepted . | . . . . . . . . . . . . . . . . . Alert | -11 -10 -10 -9 -9 -8 -7 -7 -7 -7 -7 -7 -7 -6 -6 -6 -5 ------- Run | Scr Mat Min Mat Sto Mat Fac Was Fac Low Low Zio Dee Pro Fac Ext Fac Peak Influence 643 | . 144 85 248 568 531 502 190 220 . . . . . 643 588 127 Initial 251 | . . 55 13 98 239 237 175 119 . . . . . 72 251 127 Average 259 | . 55 54 116 352 338 281 174 97 . . . . . 186 377 127 Maximum Alert Level 2 | . . . 1 2 2 2 . 1 . . . . . 2 2 . Low Security (%) 37 | 100 100 100 84 16 14 . 100 85 . . . . . 48 . 100 Level 1 38 | . . . 15 45 38 89 . 14 . . . . . 48 74 . Level 2 23 | . . . . 37 47 10 . . . . . . . 3 25 . Level 3 . | . . . . . . . . . . . . . . . . . Level 4 . | . . . . . . . . . . . . . . . . . Level 5 . | . . . . . . . . . . . . . . . . . High Security . | . . . . . . . . . . . . . . . . . Max Security . | . . . . . . . . . . . . . . . . . Squads Dispatched 21 | . 2 . 2 7 2 2 . 2 . . . . 1 2 . 1 Investigation 3 | . . . . 1 1 1 . . . . . . . . . . Extermination 4 | . . . . . . 1 . 2 . . . . . 1 . . Reinforcement 12 | . 2 . 2 5 1 . . . . . . . . 1 . 1 Assault 2 | . . . . 1 . . . . . . . . 1 . . . Garrison . | . . . . . . . . . . . . . . . . . Intercept . | . . . . . . . . . . . . . . . . . Construction Impeded 3 | . . . 1 2 . . . . . . . . . . . . Haulers Reinforced 1 | . . . . . . . . . . . . . . . . 1 Stealth | -11 -10 -10 -9 -9 -8 -7 -7 -7 -7 -7 -7 -7 -6 -6 -6 -5 --------- Run | Scr Mat Min Mat Sto Mat Fac Was Fac Low Low Zio Dee Pro Fac Ext Fac Distress Signals 13 | . 2 . 1 2 4 . . 1 . . . . . 2 1 . Communications Jammed 79 | . . . . . . . . . . . . . . 1 78 . Distress Signals 79 | . . . . . . . . . . . . . . 1 78 . Times Spotted 220 | . 11 3 19 41 43 . 6 13 . . . 11 19 27 25 2 Peak Tracking Total 9 | . 8 2 5 5 5 1 6 4 . . . 4 8 9 9 2 Tactical Retreats 21 | . . . . . 4 . . 3 . . . 1 5 7 1 . Traps | -11 -10 -10 -9 -9 -8 -7 -7 -7 -7 -7 -7 -7 -6 -6 -6 -5 ------- Run | Scr Mat Min Mat Sto Mat Fac Was Fac Low Low Zio Dee Pro Fac Ext Fac Traps Triggered 14 | . . . . 7 . 2 . 1 . . . . . 1 3 . Indirectly . | . . . . . . . . . . . . . . . . . Trap Hack Attempts . | . . . . . . . . . . . . . . . . . Triggered . | . . . . . . . . . . . . . . . . . Disarmed . | . . . . . . . . . . . . . . . . . Reprogrammed 6 | . . . . 6 . . . . . . . . . . . . Reused 1 | . . . . 1 . . . . . . . . . . . . Traps Extracted . | . . . . . . . . . . . . . . . . . Installed . | . . . . . . . . . . . . . . . . . Triggered 2 | . . . . 2 . . . . . . . . . . . . Machines | -11 -10 -10 -9 -9 -8 -7 -7 -7 -7 -7 -7 -7 -6 -6 -6 -5 ---------- Run | Scr Mat Min Mat Sto Mat Fac Was Fac Low Low Zio Dee Pro Fac Ext Fac Machines Disabled 11 | . . . 2 3 1 . . 1 . . . 2 . . 2 . Max in Single Turn 2 | . . . 2 1 1 . . 1 . . . . . . 1 . Garrison Access 5 | . . . . . 1 1 . 2 . . . . . . . 1 Energy Cycler 1 | . . . . . . . . . . . . . . . 1 . Machines Sabotaged . | . . . . . . . . . . . . . . . . . Garrisons Compromised . | . . . . . . . . . . . . . . . . . Overloaded Fab Kills . | . . . . . . . . . . . . . . . . . Fab Network Shutdowns 2 | . . . . . . 1 . . . . . . . 1 . . Hacking | -11 -10 -10 -9 -9 -8 -7 -7 -7 -7 -7 -7 -7 -6 -6 -6 -5 --------- Run | Scr Mat Min Mat Sto Mat Fac Was Fac Low Low Zio Dee Pro Fac Ext Fac Machines Accessed 43 | . 1 . 2 6 9 6 . 11 . . . . . 5 2 1 Terminals 28 | . 1 . 2 4 5 3 . 8 . . . . . 3 2 . Fabricators 2 | . . . . . . 1 . . . . . . . 1 . . Repair Stations 4 | . . . . 1 1 . . 1 . . . . . 1 . . Recycling Units . | . . . . . . . . . . . . . . . . . Scanalyzers 3 | . . . . . 2 1 . . . . . . . . . . Garrison Access 6 | . . . . 1 1 1 . 2 . . . . . . . 1 Total Hacks 106 | . 1 . 5 16 19 22 . 29 . . . . . 10 3 1 Successful 48 | . 1 . 2 4 8 10 . 17 . . . . . 4 1 1 Failed 58 | . . . 3 12 11 12 . 12 . . . . . 6 2 . Catastrophic 12 | . . . 1 2 5 2 . 1 . . . . . 1 . . Database Lockouts . | . . . . . . . . . . . . . . . . . Manual 28 | . . . . . 2 12 . 11 . . 1 . . 1 1 . Terminals 71 | . 1 . 5 10 10 13 . 24 . . . . . 5 3 . Fabricators 6 | . . . . . . 3 . . . . . . . 3 . . Repair Stations 9 | . . . . 2 2 . . 3 . . . . . 2 . . Recycling Units . | . . . . . . . . . . . . . . . . . Scanalyzers 8 | . . . . . 4 4 . . . . . . . . . . Garrison Access 12 | . . . . 4 3 2 . 2 . . . . . . . 1 Terminal Hacks 22 | . 1 . 2 4 3 2 . 8 . . . . . 1 1 . Part Schematic 4 | . . . . . . 1 . 2 . . . . . . 1 . Robot Analysis 2 | . . . 1 . . . . 1 . . . . . . . . Prototype ID Bank 2 | . . . . 2 . . . . . . . . . . . . Open Door 1 | . . . . 1 . . . . . . . . . . . . Branch Access Points 1 | . . . . . . . . 1 . . . . . . . . Machine Index 1 | . . . . . . . . 1 . . . . . . . . Recycling Unit Index 1 | . . . . . . . . . . . . . . 1 . . Unreport Threat 1 | . . . . . . . . 1 . . . . . . . . Reprogram Traps 1 | . . . . 1 . . . . . . . . . . . . Surveillance Status 1 | . . . . . 1 . . . . . . . . . . . Recall Extermination 3 | . . . . . . 1 . 2 . . . . . . . . Hauler Manifests 2 | . . . . . 2 . . . . . . . . . . . Registered Components 1 | . 1 . . . . . . . . . . . . . . . Zone Layout 1 | . . . 1 . . . . . . . . . . . . . Fabricator Hacks 4 | . . . . . . 2 . . . . . . . 2 . . Load Schematic 2 | . . . . . . 1 . . . . . . . 1 . . Build 2 | . . . . . . 1 . . . . . . . 1 . . Repair Station Hacks 5 | . . . . . 2 . . 2 . . . . . 1 . . Scan Component 2 | . . . . . 1 . . 1 . . . . . . . . Repair 2 | . . . . . 1 . . 1 . . . . . . . . Refit 1 | . . . . . . . . . . . . . . 1 . . Recycling Unit Hacks . | . . . . . . . . . . . . . . . . . Scanalyzer 5 | . . . . . 2 3 . . . . . . . . . . Insert Component 3 | . . . . . 1 2 . . . . . . . . . . Analyze 2 | . . . . . 1 1 . . . . . . . . . . Garrison Access Hacks 5 | . . . . . 1 1 . 2 . . . . . . . 1 Seal Access 5 | . . . . . 1 1 . 2 . . . . . . . 1 Unauthorized Hacks 7 | . . . . . . 2 . 5 . . . . . . . . Terminals 6 | . . . . . . 1 . 5 . . . . . . . . Track 1 | . . . . . . . . 1 . . . . . . . . Assimilate 2 | . . . . . . . . 2 . . . . . . . . Botnet 3 | . . . . . . 1 . 2 . . . . . . . . Fabricators 1 | . . . . . . 1 . . . . . . . . . . Siphon 1 | . . . . . . 1 . . . . . . . . . . Repair Stations . | . . . . . . . . . . . . . . . . . Recycling Units . | . . . . . . . . . . . . . . . . . Scanalyzers . | . . . . . . . . . . . . . . . . . Garrison Access . | . . . . . . . . . . . . . . . . . Data Cores Recovered 2 | . 1 . . . 1 . . . . . . . . . . . Used 2 | . 1 . . . 1 . . . . . . . . . . . Hacking Detections 30 | . . . 1 4 7 5 . 6 . . . . . 5 2 . Full Trace Events 3 | . . . . 1 1 1 . . . . . . . . . . Feedback Events . | . . . . . . . . . . . . . . . . . Feedback Blocked . | . . . . . . . . . . . . . . . . . Robot Schematics Acquired . | . . . . . . . . . . . . . . . . . Robots Built . | . . . . . . . . . . . . . . . . . Matter . | . . . . . . . . . . . . . . . . . Time . | . . . . . . . . . . . . . . . . . Total Robot Build Rating . | . . . . . . . . . . . . . . . . . Part Schematics Acquired 6 | . . . . . 1 2 . 2 . . . . . . 1 . Parts Built 4 | . . . . . . 2 . . . . . . . 2 . . Matter 294 | . . . . . . 126 . . . . . . . 168 . . Time 84 | . . . . . . 42 . . . . . . . 42 . . Total Part Build Rating 16 | . . . . . . 8 . . . . . . . 8 . . Parts Repaired 2 | . . . . . 1 . . 1 . . . . . . . . Time 180 | . . . . . 124 . . 56 . . . . . . . . Parts Recycled . | . . . . . . . . . . . . . . . . . Recycled Matter . | . . . . . . . . . . . . . . . . . Retrieved Matter . | . . . . . . . . . . . . . . . . . Retrieved Components . | . . . . . . . . . . . . . . . . . Parts Scanalyzed 2 | . . . . . 1 1 . . . . . . . . . . Part Schematics Acquired 2 | . . . . . 1 1 . . . . . . . . . . Parts Damaged 1 | . . . . . 1 . . . . . . . . . . . Bothacking | -11 -10 -10 -9 -9 -8 -7 -7 -7 -7 -7 -7 -7 -6 -6 -6 -5 ------------ Run | Scr Mat Min Mat Sto Mat Fac Was Fac Low Low Zio Dee Pro Fac Ext Fac Used RIF Installer . | . . . . . . . . . . . . . . . . . Robots Hacked . | . . . . . . . . . . . . . . . . . Non-combat . | . . . . . . . . . . . . . . . . . Combat . | . . . . . . . . . . . . . . . . . Robot Hacks Applied . | . . . . . . . . . . . . . . . . . Relay Couplers Released . | . . . . . . . . . . . . . . . . . Robots Rewired 6 | . . . . . . . . . . . . . . . 6 . Allies Hacked . | . . . . . . . . . . . . . . . . . Hacks Repelled . | . . . . . . . . . . . . . . . . . Allies | -11 -10 -10 -9 -9 -8 -7 -7 -7 -7 -7 -7 -7 -6 -6 -6 -5 -------- Run | Scr Mat Min Mat Sto Mat Fac Was Fac Low Low Zio Dee Pro Fac Ext Fac Total Allies 23 | . . . . 11 . . 1 2 . . 2 1 . . 6 . Largest Group 11 | . . . . 11 4 . 1 2 . . 2 3 3 . 4 . Highest-Rated Group 306 | . . . . 182 40 . 31 36 . . 188 306 306 . 114 . Highest-Rated Ally 118 | . . . . 99 16 . 31 26 . . 94 118 118 . 37 . Total Orders . | . . . . . . . . . . . . . . . . . Ally Attacks 162 | . . . . 55 10 . 4 . . . . 56 5 . 32 . Total Damage 6481 | . . . . 1158 90 . 85 . . . . 4174 229 . 745 . Kills 39 | . . . . 18 . . . . . . . 13 3 . 5 . Allies Corrupted . | . . . . . . . . . . . . . . . . . Allies Melted . | . . . . . . . . . . . . . . . . . Intel | -11 -10 -10 -9 -9 -8 -7 -7 -7 -7 -7 -7 -7 -6 -6 -6 -5 ------- Run | Scr Mat Min Mat Sto Mat Fac Was Fac Low Low Zio Dee Pro Fac Ext Fac Robot Analysis Total 2 | . . . 1 . . . . 1 . . . . . . . . Derelict Logs Recovered 6 | . . . . . . . . . . 2 2 . 2 . . . Drone Launches . | . . . . . . . . . . . . . . . . . Drone Recoveries . | . . . . . . . . . . . . . . . . . Exploration | -11 -10 -10 -9 -9 -8 -7 -7 -7 -7 -7 -7 -7 -6 -6 -6 -5 ------------- Run | Scr Mat Min Mat Sto Mat Fac Was Fac Low Low Zio Dee Pro Fac Ext Fac Turns Passed 10586 | 62 213 40 760 1724 2304 446 135 1045 317 253 634 1018 158 824 598 55 Spaces Moved 13342 | 48 127 30 405 894 1132 1156 314 2639 924 733 1488 1484 279 1271 348 70 Core 207 | 1 . . 2 . . . . . . . . . . 144 31 29 Treads 1147 | 12 5 . 94 . 983 4 . . . . . . . . 49 . Legs 1060 | . . . . 841 149 . . . . . . . . . 70 . Wheels 644 | 35 122 30 309 . . . . . . . . . . . 148 . Hover 2274 | . . . . 53 . . . . . . . 1320 174 677 50 . Flight 8010 | . . . . . . 1152 314 2639 924 733 1488 164 105 450 . 41 Fastest Speed 20 | 50 90 110 100 120 120 29 29 29 34 34 34 34 35 35 50 20 Average Speed 62 | 105 111 110 132 153 162 29 29 33 34 34 34 51 47 49 115 47 Slowest Speed 750 | 160 180 110 750 360 180 178 29 34 34 34 109 126 175 100 350 200 Overloaded Moves . | . . . . . . . . . . . . . . . . . Propulsion Burnouts . | . . . . . . . . . . . . . . . . . Robots Hopped 7 | . . . . . . . . 1 . 1 . . 2 3 . . Cave-ins Triggered . | . . . . . . . . . . . . . . . . . Exploration Rate (%) 52 | 4 30 15 45 93 92 29 84 44 88 84 86 82 45 27 46 3 Regions Visited 16 Branch Regions 8 Pre-discovered Areas 1 | . . . . . . . . . . . 1 . . . . . Known Exits Taken 4 | . . . . . . . . 1 . 1 . . . 1 1 . Unknown Exits Taken 10 | 1 1 1 1 1 1 . . . 1 . 1 1 1 . . . Scrap Searched 9 | . . . . . . . . . 1 3 3 . 2 . . . Spaces Dug 38 | . . . . . . 3 . 11 . . 3 8 3 10 . . Terrain Destroyed 115 | . 6 . 30 . 14 3 . 11 . . 3 14 3 14 17 . Melee 18 | . . . . . . 3 . 11 . . 3 1 . . . . Projectile 37 | . . . . . . . . . . . . 7 3 14 13 . AOE 60 | . 6 . 30 . 14 . . . . . . 6 . . 4 . Terrain Rammed . | . . . . . . . . . . . . . . . . . Walls Destroyed . | . . . . . . . . . . . . . . . . . Machines Disabled . | . . . . . . . . . . . . . . . . . Actions | -11 -10 -10 -9 -9 -8 -7 -7 -7 -7 -7 -7 -7 -6 -6 -6 -5 --------- Run | Scr Mat Min Mat Sto Mat Fac Was Fac Low Low Zio Dee Pro Fac Ext Fac Total 14963 | 56 159 33 520 1103 1445 1244 358 2779 925 734 1599 1723 302 1426 475 82 Wait 700 | . 6 . 25 77 132 19 42 84 . . 89 144 . 73 6 3 Move 13313 | 47 126 29 404 893 1131 1156 313 2636 923 730 1487 1483 274 1264 347 70 Hop 7 | . . . . . . . . 1 . 1 . . 2 3 . . Pick Up 104 | 3 5 . 11 8 29 8 1 5 . 2 4 22 2 4 . . Fast Attach 106 | 6 1 . 7 18 10 5 . 2 . . 2 16 1 18 17 3 Attach 44 | . . 2 5 7 6 5 . 2 . . 1 6 2 6 . 2 Detach 18 | . . . 2 2 1 1 . 3 . . 1 1 3 4 . . Swap 49 | . 2 . 2 7 13 4 . 7 2 1 2 5 2 1 1 . Drop 125 | . . . 4 16 30 15 2 4 . . 3 28 11 7 5 . Fire 324 | . 19 2 48 61 93 . . . . . . 17 4 36 40 4 Melee 66 | . . . 12 13 . 13 . 17 . . 10 1 . . . . Ram 2 | . . . . . . . . . . . . . 1 . 1 . Kick 1 | . . . . 1 . . . . . . . . . . . . Crush . | . . . . . . . . . . . . . . . . . Escape Stasis 70 | . . . . . . 18 . 18 . . . . . 10 24 . Rewire 34 | . . . . . . . . . . . . . . . 34 . Trap . | . . . . . . . . . . . . . . . . . Miscellaneous . | . . . . . . . . . . . . . . . . . Route ------- -11/Scrapyard -10/Materials -10/Mines (discovered 2 exits: *Mat x2) -9/Materials (discovered 4 exits: *Mat x2 / [*Min] / *Sto) -9/Storage -8/Materials (discovered 3 exits: *Fac x3) -7/Factory (discovered 2 exits: *Fac x2) -7/Waste -7/Factory (discovered 5 exits: *Fac x3 / *Low x2) -7/Lower Caves (discovered 2 exits: [*Low] / *Zio) -7/Lower Caves (discovered 2 exits: *Fac / *Zio) -7/Zion (discovered 2 exits: [*Dee] / [*Pro]) -7/Deep Caves -6/Proximity Caves -6/Factory (discovered 5 exits: *Fac / [*Low x2] / *Ext x2) -6/Extension -5/Factory (discovered 1 exit: Upp) History --------- Turn | Location | Event 27 | -11/Scrapyard | Discovered new exit (range 14) 63 | -11/Scrapyard | Entered Materials 135 | -10/Materials | Discovered new exit (range 15) 276 | -10/Materials | Entered Mines 291 | -10/Mines | Discovered new exit (range 10) 301 | -10/Mines | Assembled infested the area 302 | -10/Mines | Discovered new exit (range 10) 316 | -10/Mines | Entered Materials 316 | -9/Materials | Evolved 2 slots: Propulsion x1, Utility x1 343 | -9/Materials | Lost 5 parts (1p2n2w) 352 | -9/Materials | Build established: Mutant 548 | -9/Materials | Discovered new exit (range 16) 849 | -9/Materials | Discovered new exit (range 16) 1016 | -9/Materials | Discovered new exit (range 13) 1018 | -9/Materials | Discovered new exit (range 13) 1076 | -9/Materials | Entered Storage 1107 | -9/Storage | Lost 6 parts (1p3n1u1w) 1204 | -9/Storage | Core integrity fell below 50% 1488 | -9/Storage | Discovered new exit (range 16) 1509 | -9/Storage | Met 01-MTF 1545 | -9/Storage | Build established: Scavenger-Mutant 2039 | -9/Storage | Assisted by bots powering up and referring to "LRC-V3" 2336 | -9/Storage | Build established: Commander-Mutant 2676 | -9/Storage | First assault squad dispatched 2738 | -9/Storage | Destroyed 01-MTF 2749 | -9/Storage | Found Prototype Device 2749 | -9/Storage | Identified 01-MTF's Autohacker 2800 | -9/Storage | Entered Materials 2800 | -8/Materials | Accompanied by 4 allies 2800 | -8/Materials | Evolved 2 slots: Utility x2 3095 | -8/Materials | Build established: Mutant 3564 | -8/Materials | Repaired Broken Mni. Fusion Reactor 3854 | -8/Materials | Discovered new exit (range 3) 4338 | -8/Materials | Discovered new exit (range 16) 4803 | -8/Materials | Build established: Hauler-Mutant 5027 | -8/Materials | Discovered new exit (range 16) 5104 | -8/Materials | Entered Factory 5104 | -7/Factory | Evolved 2 slots: Utility x2 5355 | -7/Factory | Discovered new exit (range 15) 5412 | -7/Factory | Build established: Hacker-Sprinter 5425 | -7/Factory | Discovered new exit (range 3) 5505 | -7/Factory | Local fabrication network quarantined 5529 | -7/Factory | Fabricated Powered Armor (x2) 5550 | -7/Factory | Manually triggered Chute Trap 5550 | -7/Factory | Sucked down chute 5550 | -7/Factory | Entered Waste 5551 | -7/Waste | Met a frightened Derelict 5578 | -7/Waste | Spotted C-40 Crusher 5582 | -7/Waste | Spotted C-40 Crusher 5583 | -7/Waste | Spotted C-40 Crusher 5590 | -7/Waste | Spotted C-40 Crusher 5591 | -7/Waste | Spotted C-40 Crusher 5592 | -7/Waste | Spotted C-40 Crusher 5679 | -7/Waste | Discovered new exit (range 14) 5685 | -7/Waste | Entered Factory 5823 | -7/Factory | Repaired Nuclear Pulse Array? 5944 | -7/Factory | Identified exit to Lower Caves 6152 | -7/Factory | Discovered new exit (range 11) 6155 | -7/Factory | Build established: Hacker-Mutant 6426 | -7/Factory | Discovered new exit (range 15) 6638 | -7/Factory | Discovered new exit (range 5) 6730 | -7/Factory | Entered Lower Caves 6871 | -7/Lower Caves | Discovered new exit (range 8) 6947 | -7/Lower Caves | A Derelict revealed a hidden shortcut to a safe place 7047 | -7/Lower Caves | Entered another Lower Caves area 7064 | -7/Lower Caves | Discovered new exit (range 7) 7171 | -7/Lower Caves | Encountered a Warlord checkpoint 7176 | -7/Lower Caves | Identified exit to Zion 7300 | -7/Lower Caves | Entered Zion 7332 | -7/Zion | Given A8's code to call for help 7336 | -7/Zion | Discovered new exit (range 14) 7359 | -7/Zion | Learned location of 1 exit from Factory 7366 | -7/Zion | Learned location of Warlord (-5) 7397 | -7/Zion | Acquired unknown access codes intercepted by a Zionite 7486 | -7/Zion | Learned Factory trap positions 7669 | -7/Zion | Discovered new exit (range 4) 7672 | -7/Zion | Saw the warning signs outside the Deep Caves entrance 7692 | -7/Zion | Enhanced Grunt warped into view, answering call for help 7714 | -7/Zion | Enhanced Grunt warped into view, answering call for help 7777 | -7/Zion | Found Prototype Device 7829 | -7/Zion | Found Prototype Device 7841 | -7/Zion | Identified Bomb Factory No. 2 7934 | -7/Zion | Entered Deep Caves 7934 | -7/Deep Caves | Accompanied by 2 allies 7935 | -7/Deep Caves | Met 5H-AD0 8017 | -7/Deep Caves | Z-Facility disabled 8023 | -7/Deep Caves | Attacked by Z-Imprinter 8058 | -7/Deep Caves | Found Prototype Device 8070 | -7/Deep Caves | Found Prototype Protection 8070 | -7/Deep Caves | Identified Zio. Weapon Casing 8081 | -7/Deep Caves | Identified Zio. Metafield Generator 8189 | -7/Deep Caves | Found Zio. Weapon Casing 8328 | -7/Deep Caves | Build established: Scavenger-Mutant 8537 | -7/Deep Caves | Found Zio. Weapon Casing 8655 | -7/Deep Caves | Discovered new exit (range 7) 8664 | -7/Deep Caves | Identified Mobile Refinery Mk. CCLXVII 8902 | -7/Deep Caves | Found Surveybot 24 Chip 8952 | -7/Deep Caves | Entered Proximity Caves 8952 | -6/Proximity Caves | Accompanied by 3 allies (5H-AD0) 8955 | -6/Proximity Caves | Learned 12 Factory zone layouts 8957 | -6/Proximity Caves | Thanked by 5H-AD0 8980 | -6/Proximity Caves | Attracted the attention of an 0b10 outpost 9104 | -6/Proximity Caves | Core integrity fell below 50% 9105 | -6/Proximity Caves | Lost 5 parts (3n1u1w) 9106 | -6/Proximity Caves | Discovered new exit (range 15) 9107 | -6/Proximity Caves | Attracted the attention of an 0b10 checkpoint 9110 | -6/Proximity Caves | Entered Factory 9110 | -6/Factory | Evolved 2 slots: Propulsion x1, Utility x1 9111 | -6/Factory | Identified exit to Extension 9112 | -6/Factory | Identified exit to Factory 9114 | -6/Factory | Loaded intel: 97 trap records 9310 | -6/Factory | Lost 7 parts (1p3n2u1w) 9478 | -6/Factory | Discovered new exit (range 16) 9484 | -6/Factory | Discovered new exit (range 10) 9623 | -6/Factory | Build established: Hacker-Mutant 9756 | -6/Factory | Fabricated Powered Armor (x2) 9908 | -6/Factory | Local fabrication network quarantined 9926 | -6/Factory | Discovered exit to Extension (range 16) 9934 | -6/Factory | Entered Extension 10011 | -6/Extension | Energy Cycler disabled 10016 | -6/Extension | Rescued a captive Derelict 10023 | -6/Extension | Rescued a captive Derelict 10027 | -6/Extension | Rescued a captive Derelict 10028 | -6/Extension | Rescued a captive Derelict 10349 | -6/Extension | Spotted B-75 Beast 10359 | -6/Extension | Spotted B-75 Beast 10407 | -6/Extension | Lost 9 parts (4n3u2w) 10434 | -6/Extension | Disrupted transfer network 10513 | -6/Extension | Destroyed B-75 Beast 10522 | -6/Extension | Discovered exit to Factory (range 15) 10524 | -6/Extension | Core integrity fell below 50% 10531 | -6/Extension | Core integrity fell below 20% 10532 | -6/Extension | Entered Factory 10532 | -5/Factory | Evolved 2 slots: Utility x2 10533 | -5/Factory | Identified exit to Upper Caves 10558 | -5/Factory | Lost 8 parts (1p3n2u2w) 10587 | -5/Factory | Self-destructed Last Messages --------------- 10524_ Imp. Deuterium Engine destroyed. 10526_ Flexi-carbon Leg destroyed. 10526_ Critical hit. 10526_ Zio. Biocell destroyed. 10526_ Knocked back. 10527_ Hacking Suite destroyed. 10528_ S-27 Virus destroyed. PARAMETERS=UTILITY_2 LOCATION=FACTORY GOAL=ESCAPE Loading 1 Upper Caves entrance... 10535_ Connecting with Garrison Access... >>Seal Access door sealed. 10547_ Acquired Field Propulsion Drive. 10556_ Connecting with Fabricator... 10564_ Acquired Imp. Arc Projector. 10575_ A-15 Conveyor calls for reinforcements. 10575_ ALERT: Hostile activity reported, dispatching reinforcements to area. Map ----- +----------------------------------------------------+ | ????????????# " " ! # ?????????? | | ????????????# ""G"" # ???????????? | | ????????????# ! # #?????????????? | | ????????????#####+##### #?????????????? | | ?????????????# #?????????????? | | ?????????????# #?????????????? | | ?????????????# #?????????????? | | ?????????????# #?????????????? | | ?????????????# #?????????????? | | ?????????????### ###+#######??????????? | | ???????????????# # #??????????? | | ???????????????# # #??????????? | | ???????????????# # """"""" #??????????? | | ???????????????# u """"""" #??????????? | | ???????????????# # """"""" #??????????? | | ???????????????# # """"""" #??????????? | | ???????????????# # #??????????? | | ????????######## # ! #??????????? | | ??#######! A ###########??????????? | | ?? !# #????????????????????? | | ?"""" #""" #????????????????????? | | ?"""" #""F #????????????????????? | | ?"""" #"" #????????????????????? | | ?"""" ] #""" * #????????????????????? | | #"""" #""" ! #????????????????????? | | #"""" # *!@ #????????????????????? | | # # #????????????????????? | | #"""" + +????????????????????? | | #"""" # #????????????????????? | | ?"""" # #????????????????????? | | ?"""" # """""" #????????????????????? | | ?"""" # """""" #????????????????????? | | ?"""" # """""" ???????????????????? | | ?? # """""" ??????????????????? | | ? # ? ?????????????????? | | ?? # ? ???????????????? | | ?######## ? g ??????????????? | | ????????##########?#### ???????????????? | | ???????????????????????g ????????????????? | | ??????????????????????????????????????????? | | ??????????????????????????????????????????? | | ??????????????????????????????????????????? | | ??????????????????????????????????????????? | | ??????????????????????????????????????????? | | ??????????????????????????????????????????? | | ??????????????????????????????????????????? | | ??????????????????????????????????????????? | | ??????????????????????????????????????????? | | ??????????????????????????????????????????? | | ??????????????????????????????????????????? | +----------------------------------------------------+ Best States ------------- Heat Dissipation 60 Energy Generation 27 Energy Capacity 1290 Matter Stores 300 Matter Capacity 300 Sight Range 16 Robot Scan Range 16 Terrain Scan Density 10 Jamming Range 12 Cloak Strength 3 Additional Mass Support 18 Armor Coverage 800 Utility Shielding 66 Weapon Shielding 100 Evasion (%) 64 Melee Accuracy 6 Recoil Reduction 3 Energy Filtering 30 Offensive Hacking 32 Defensive Hacking 20 Item Schematics ----------------- Mni. Fusion Reactor | -8/Materials | Scanalyzed Powered Armor | -7/Factory | Hacked Adv. EMP Blaster | -7/Factory | Scanalyzed Imp. Salvage Targeting Computer | -7/Factory | Hacked Hyp. Gauss Rifle | -7/Factory | Hacked Imp. Force Booster | -6/Extension | Hacked Robot Schematics ------------------ None Fabricated ------------ Powered Armor | x2 | -7/Factory Powered Armor | x2 | -6/Factory Alien Tech Used ----------------- None Achievements -------------- None Challenges ------------ None Game ------ Seed SuperchargedFlakWand Manual? 0 Play Time 02:56:04 Cumulative 437.9 hours Start 2020.12.09 @ 02:29:37 End 2020.12.10 @ 00:04:53 Sessions 15 Manual Loads 0 Difficulty Rogue Special Mode None Game No. 310 Rogue 310 Adventurer 0 Explorer 0 Win Type - Total 15 Types 13/0/0/2/0/0/0/0/0 Lore% 84 Gallery% 82 Achievement% 67 Wizard Run 0 Options --------- ASCII 0 Keyboard 0 Movement Vi Keybinds 0 Fullscreen 0 Font 16/SmallcapsGlow Map View 76x50 Tactical HUD 1 Map Filters NONE Filters NONE Steam 1 RUN: 18c1544a-05af-47f9-a9f0-cf8e0dcdb1cd